Cogmind - Beta 11.1 @@@ ROGUE MODE // 2022.04.27 @ 14:36:32 Player: FrigidRock Result: Destroyed by L-31 Rogue with Katana Performance ------------- Evolutions (1) 500 Regions Visited (3) 600 Robots Destroyed (41) 205 Value Destroyed (883) 883 Prototype IDs (0) 0 Alien Tech Used (0) 0 Bonus (22) 22 TOTAL SCORE: 2210 Bonus ------- High Alert Combat Kills 22 Cogmind --------- Core Integrity 0/400 Matter 221/300 Energy 100/100 System Corruption 0% Temperature Cool (0) Movement Treading (160) Location -9/Materials Parts ------- > --- POWER (1) -------- (None) > --- PROPULSION (3) --- Light Treads Improved Aluminum Leg > --- UTILITY (3) ------ Medium Storage Unit Targeting Computer Light Armor Plating > --- WEAPON (2) ------- Mini Grenade Launcher > --- INVENTORY (10) --- Light Ion Engine Improved Ion Engine Heat Sink High-capacity Storage Unit Large Matter Pod (85) Signal Interpreter Light Assault Rifle Light Assault Rifle Peak State ------------ > --- POWER ------------ Improved Ion Engine > --- PROPULSION ------- Aluminum Leg Aluminum Leg > --- UTILITY ---------- Medium Storage Unit Targeting Computer Light Armor Plating > --- WEAPON ----------- Light Assault Rifle Light Cannon > --- INVENTORY -------- Light Ion Engine Light Ion Engine High-capacity Storage Unit Large Matter Pod Signal Interpreter Small Laser Small Laser Particle Gun Light Assault Rifle Mini Grenade Launcher [Rating: 10] Favorites ----------- Power Light Ion Engine Engine Light Ion Engine Propulsion Aluminum Leg Treads Light Treads Leg Aluminum Leg Utility Medium Storage Unit Device Seismic Detector Storage Medium Storage Unit Processor Targeting Computer Protection Light Armor Plating Weapon Light Assault Rifle Energy Gun Small Laser Ballistic Gun Light Assault Rifle Ballistic Cannon Light Cannon Launcher Mini Grenade Launcher Build | -11 -10 -10 -9 ------- Run | Scr Mat Min Mat Slots Evolved 2 | . . . 2 Power . | . . . . Propulsion 1 | . . . 1 Utility 1 | . . . 1 Weapon . | . . . . Parts Attached 36 | 8 10 2 16 Power 6 | 1 2 1 2 Engine 6 | 1 2 1 2 Core . | . . . . Reactor . | . . . . Propulsion 6 | 2 2 . 2 Treads 3 | 2 . . 1 Leg 3 | . 2 . 1 Wheel . | . . . . Hover . | . . . . Flight . | . . . . Utility 8 | 2 3 . 3 Device 3 | 1 1 . 1 Storage 2 | 1 1 . . Processor 1 | . 1 . . Hackware . | . . . . Protection 2 | . . . 2 Artifact . | . . . . Weapon 16 | 3 3 1 9 Energy Gun 6 | 2 1 . 3 Energy Cannon . | . . . . Ballistic Gun 6 | 1 2 . 3 Ballistic Cannon 2 | . . 1 1 Launcher 2 | . . . 2 Special Weapon . | . . . . Impact Weapon . | . . . . Slashing Weapon . | . . . . Piercing Weapon . | . . . . Special Melee Weapon . | . . . . Unidentified Prototypes . | . . . . Parts Lost 18 | . 7 1 10 Power 3 | . 1 1 1 Propulsion 4 | . 2 . 2 Utility 2 | . 1 . 1 Weapon 9 | . 3 . 6 Highest Loss Streak 7 | . 4 1 7 To Critical Strikes . | . . . . Average Slot Usage (%) 86 | . 88 99 76 Engine 11 | . 14 13 8 Treads 6 | . 16 . 1 Leg 16 | . 8 28 15 Device 3 | . 7 . 3 Storage 12 | . 14 14 11 Processor 8 | . . 14 11 Protection 2 | . . . 6 Energy Gun 9 | . 11 11 5 Ballistic Gun 10 | . 14 14 5 Ballistic Cannon 2 | . . 1 4 Launcher 1 | . . . 3 Naked Turns . | . . . . Heaviest Build 22 | 11 17 17 22 Greatest Support 40 | 40 40 20 20 Greatest Overweight (x) 3 | . 3 . 3 Average Overweight (x) . | . . . . Largest Inventory Capacity 10 | 8 10 10 10 Average Capacity 9 | 7 8 10 10 Most Carried 10 | 2 5 10 10 Average Carried 5 | . 3 4 8 Final Capacity 10 | 8 10 10 10 Final Carried 10 | 1 4 10 8 Class Distribution -------------------- 51% | Mutant 48% | Scavenger-Mutant Dominant Class ---------------- Mutant | -10/Materials Scavenger-Mutant | -10/Mines Scavenger-Mutant | -9/Materials Resources | -11 -10 -10 -9 ----------- Run | Scr Mat Min Mat Matter Collected 737 | 183 226 75 253 Remotely . | . . . . Salvage Created 1236 | 10 425 262 539 Parts 87 | 3 35 7 42 Haulers Intercepted . | . . . . Recyclers Shooed 1 | . . . 1 Parts Field Recycled . | . . . . Retrieved Matter . | . . . . Parts Self-Destructed . | . . . . Prevented . | . . . . Kills | -11 -10 -10 -9 ------- Run | Scr Mat Min Mat Combat Hostiles Destroyed 35 | . 13 3 19 Guns 26 | . 13 3 10 Cannons 2 | . . . 2 AOE 7 | . . . 7 Classes Destroyed 7 | 1 2 1 3 Worker 1 | . . . 1 Tunneler 1 | 1 . . . Recycler 3 | . . 2 1 Operator 1 | . . . 1 Swarmer 19 | . 6 3 10 Grunt 12 | . 7 . 5 Sentry 4 | . . . 4 Best Kill Streak 6 | 1 6 5 6 Combat Bots Only 6 | . 6 3 6 Max Kills in Single Turn 4 | 1 2 1 4 Gunslinging 1 | . 1 . . Exploded 2 | . . . 2 Melee . | . . . . Uniques/NPCs Destroyed . | . . . . Combat | -11 -10 -10 -9 -------- Run | Scr Mat Min Mat Damage Taken 2161 | . 930 130 1101 Core 572 | . 130 42 400 Absorbed by Shields . | . . . . Core Remaining (%) 65 | 100 . 31 . Volleys Fired 119 | 9 47 13 50 Largest 2 | 2 2 2 2 Hottest 105 | 60 60 60 105 Shots Fired 222 | 18 93 26 85 Gun 197 | 18 93 25 61 Cannon 18 | . . 1 17 Launcher 7 | . . . 7 Special . | . . . . Kinetic 119 | 9 58 14 38 Thermal 96 | 9 35 12 40 Explosive 7 | . . . 7 Electromagnetic . | . . . . Robot Hit Streak 18 | 5 15 11 18 Robot Miss Streak 6 | 2 6 3 4 Penetration Max . | . . . . Secondary Targets 6 | . 4 . 2 Max Gunslinging Chain 1 | . 1 . 1 Shots Hit Robots 162 | 11 66 17 68 Core Hits 63 | 2 22 8 31 Critical Kills 1 | . . 1 . Critical Parts Destroyed . | . . . . Critical Strikes 2 | . . 1 1 Burn 1 | . . . 1 Destroy 1 | . . 1 . Melee Attacks . | . . . . Impact . | . . . . Slashing . | . . . . Piercing . | . . . . Sneak Attacks . | . . . . Combat Hostiles . | . . . . Follow-up Attacks . | . . . . Damage Inflicted 2503 | 103 629 181 1590 Guns 1549 | 103 619 161 666 Cannons 253 | . . 20 233 Explosions 682 | . . . 682 Melee . | . . . . Ramming 19 | . 10 . 9 Kinetic 941 | 38 345 103 455 Thermal 861 | 65 274 78 444 Explosive 682 | . . . 682 Electromagnetic . | . . . . Impact . | . . . . Slashing . | . . . . Piercing . | . . . . Highest Corruption . | . . . . Average Corruption . | . . . . Corruption Purged . | . . . . Corruption Blocked . | . . . . Overload Shots . | . . . . Overflow Damage 119 | . . . 119 Projectiles 15 | . . . 15 Explosions 104 | . . . 104 Melee . | . . . . Knockbacks 4 | . . . 4 Impact . | . . . . Kinetic 4 | . . . 4 Secondary . | . . . . Self-Inflicted Damage 30 | . . . 30 Shots 1 | . . . 1 Rammed 12 | . 12 . . Targets Rammed 16 | . 12 . 4 Kicked 4 | . . . 4 Crushed . | . . . . Highest Temperature 482 | 40 90 40 482 Average Temperature 98 | 19 35 16 210 Received Heat Transfer 681 | . 423 . 258 Effects 6 | . . . 6 Shutdowns 2 | . . . 2 Energy Bleed 2 | . . . 2 Damage (minor) 1 | . . . 1 Damage (major) 1 | . . . 1 Siege Activations . | . . . . Robots Corrupted . | . . . . Combat Hostiles . | . . . . Parts Fried . | . . . . Impact Corruptions . | . . . . Robots Melted . | . . . . Combat Hostiles . | . . . . Parts Melted 3 | . 1 . 2 Heat Transferred 2077 | 150 625 175 1127 Parts Sabotaged . | . . . . Parts Stolen . | . . . . Parts Stripped . | . . . . Power Chain Reactions . | . . . . Missiles Intercepted . | . . . . Alert | -11 -10 -10 -9 ------- Run | Scr Mat Min Mat Peak Influence 567 | 5 278 135 567 Initial 52 | . 3 45 52 Average 160 | 1 161 92 273 Maximum Alert Level 2 | . 1 . 2 Low Security (%) 66 | 100 57 100 36 Level 1 23 | . 42 . 34 Level 2 10 | . . . 29 Level 3 . | . . . . Level 4 . | . . . . Level 5 . | . . . . High Security . | . . . . Max Security . | . . . . Squads Dispatched 5 | . 3 . 2 Investigation 2 | . 1 . 1 Extermination . | . . . . Reinforcement 3 | . 2 . 1 Assault . | . . . . Garrison . | . . . . Intercept . | . . . . Searches Triggered . | . . . . Construction Impeded 1 | . . . 1 Haulers Reinforced . | . . . . Active Scanning Responses . | . . . . Cargo Convoy Interrupts . | . . . . Stealth | -11 -10 -10 -9 --------- Run | Scr Mat Min Mat Distress Signals 3 | . 2 . 1 Communications Jammed . | . . . . Distress Signals . | . . . . Times Spotted 57 | . 23 4 30 Peak Tracking Total 8 | . 6 3 8 Tactical Retreats 3 | . . 1 2 Traps | -11 -10 -10 -9 ------- Run | Scr Mat Min Mat Traps Triggered . | . . . . Indirectly . | . . . . Trap Hack Attempts . | . . . . Triggered . | . . . . Disarmed . | . . . . Reprogrammed . | . . . . Reused . | . . . . Traps Extracted . | . . . . Installed . | . . . . Triggered . | . . . . Machines | -11 -10 -10 -9 ---------- Run | Scr Mat Min Mat Machines Disabled 5 | . . . 5 Max in Single Turn 1 | . . . 1 Machines Sabotaged . | . . . . Garrisons Compromised . | . . . . Overloaded Fab Kills . | . . . . Hacking | -11 -10 -10 -9 --------- Run | Scr Mat Min Mat Machines Accessed 6 | . 3 . 3 Terminals 5 | . 2 . 3 Fabricators . | . . . . Repair Stations . | . . . . Recycling Units 1 | . 1 . . Scanalyzers . | . . . . Garrison Access . | . . . . Total Hacks 11 | . 5 . 6 Successful 5 | . 2 . 3 Failed 6 | . 3 . 3 Catastrophic 2 | . 1 . 1 Database Lockouts . | . . . . Manual 7 | . 3 . 4 Terminals 10 | . 4 . 6 Fabricators . | . . . . Repair Stations . | . . . . Recycling Units 1 | . 1 . . Scanalyzers . | . . . . Garrison Access . | . . . . Terminal Hacks 3 | . 1 . 2 Branch Access Points 2 | . 1 . 1 Terminal Index 1 | . . . 1 Fabricator Hacks . | . . . . Repair Station Hacks . | . . . . Recycling Unit Hacks . | . . . . Scanalyzer . | . . . . Garrison Access Hacks . | . . . . Unauthorized Hacks 2 | . 1 . 1 Terminals 1 | . . . 1 Sabotage 1 | . . . 1 Fabricators . | . . . . Repair Stations . | . . . . Recycling Units 1 | . 1 . . Tunnel 1 | . 1 . . Scanalyzers . | . . . . Garrison Access . | . . . . Data Cores Recovered 1 | . . . 1 Used . | . . . . Hacking Detections 2 | . 1 . 1 Full Trace Events 1 | . 1 . . Feedback Events . | . . . . Feedback Blocked . | . . . . Robot Schematics Acquired . | . . . . Robots Built . | . . . . Authchips . | . . . . Time . | . . . . Total Robot Build Rating . | . . . . Part Schematics Acquired . | . . . . Parts Built . | . . . . Authchips . | . . . . Time . | . . . . Total Part Build Rating . | . . . . Parts Repaired . | . . . . Time . | . . . . Parts Recycled . | . . . . Recycled Matter . | . . . . Retrieved Matter . | . . . . Retrieved Components . | . . . . Parts Scanalyzed . | . . . . Part Schematics Acquired . | . . . . Parts Damaged . | . . . . Bothacking | -11 -10 -10 -9 ------------ Run | Scr Mat Min Mat Used RIF Installer . | . . . . Robots Hacked . | . . . . Non-combat . | . . . . Combat . | . . . . Robot Hacks Applied . | . . . . Relay Couplers Released . | . . . . Fabnet Peak Effective % . | . . . . Robots Rewired . | . . . . Allies Hacked . | . . . . Hacks Repelled . | . . . . Allies | -11 -10 -10 -9 -------- Run | Scr Mat Min Mat Total Allies . | . . . . Largest Group . | . . . . Highest-Rated Group . | . . . . Highest-Rated Ally . | . . . . Total Orders . | . . . . Ally Attacks . | . . . . Total Damage . | . . . . Kills . | . . . . Allies Corrupted . | . . . . Allies Melted . | . . . . Intel | -11 -10 -10 -9 ------- Run | Scr Mat Min Mat Robot Analysis Total . | . . . . Derelict Logs Recovered . | . . . . Drone Launches . | . . . . Drone Recoveries . | . . . . Exploration | -11 -10 -10 -9 ------------- Run | Scr Mat Min Mat Turns Passed 1639 | 242 460 377 560 Spaces Moved 856 | 130 193 273 260 Core 9 | 4 3 . 2 Treads 244 | 126 104 . 14 Legs 603 | . 86 273 244 Wheels . | . . . . Hover . | . . . . Flight . | . . . . Fastest Speed 50 | 50 120 120 120 Average Speed 139 | 156 143 120 147 Slowest Speed 200 | 160 200 120 200 Overloaded Moves . | . . . . Propulsion Burnouts . | . . . . Robots Hopped . | . . . . Cave-ins Triggered . | . . . . Exploration Rate (%) 37 | 8 39 70 34 Regions Visited 3 Branch Regions 1 Pre-discovered Areas 1 | . 1 . . Known Exits Taken 1 | . 1 . . Unknown Exits Taken 2 | 1 . 1 . Scrap Searched 1 | . . 1 . Spaces Dug 10 | . . . 10 Terrain Destroyed 60 | . . . 60 Melee . | . . . . Projectile . | . . . . AOE 60 | . . . 60 Terrain Rammed . | . . . . Walls Destroyed . | . . . . Machines Disabled . | . . . . Actions | -11 -10 -10 -9 --------- Run | Scr Mat Min Mat Total 1084 | 149 285 299 351 Wait 35 | . 16 5 14 Move 853 | 129 192 272 260 Hop . | . . . . Pick Up 17 | 2 5 6 4 Fast Attach 21 | 7 8 1 5 Attach 10 | 1 2 1 6 Detach 2 | . . 1 1 Swap 5 | . . . 5 Drop 6 | 1 3 . 2 Fire 119 | 9 47 13 50 Melee . | . . . . Ram . | . . . . Kick 4 | . . . 4 Crush 12 | . 12 . . Escape Stasis . | . . . . Rewire . | . . . . Trap . | . . . . Miscellaneous . | . . . . Route ------- -11/Scrapyard -10/Materials (discovered 2 exits: *Min x2) -10/Mines -9/Materials (discovered 2 exits: *Min x2) History --------- Turn | Location | Event 5 | -11/Scrapyard | Discovered new exit (range 16) 243 | -11/Scrapyard | Entered Materials 317 | -10/Materials | Build established: Mutant 537 | -10/Materials | Lost 4 parts (1n1u2w) 584 | -10/Materials | Core integrity fell below 50% 594 | -10/Materials | Lost 3 parts (1p1n1w) 659 | -10/Materials | Identified exit to Mines 703 | -10/Materials | Entered Mines 850 | -10/Mines | Build established: Scavenger-Mutant 1028 | -10/Mines | Discovered new exit (range 10) 1035 | -10/Mines | Received a Rocket Launcher from a helpful Derelict 1080 | -10/Mines | Entered Materials 1080 | -9/Materials | Evolved 2 slots: Propulsion x1, Utility x1 1179 | -9/Materials | Identified exit to Mines 1504 | -9/Materials | Core integrity fell below 50% 1537 | -9/Materials | Core integrity fell below 20% 1565 | -9/Materials | Lost 7 parts (1p1n5w) 1640 | -9/Materials | Destroyed by L-31 Rogue with Katana Last Messages --------------- 01619_ U-05 Engineer builds a Wall. 01621_ U-05 Engineer lays Concrete. 01621_ U-05 Engineer builds a Wall. 01622_ U-05 Engineer lays Concrete. 01625_ U-05 Engineer builds a Wall. 01629_ U-05 Engineer lays Concrete. 01632_ G-34 Mercenary destroyed. 01632_ R-06 Scavenger destroyed. 01632_ K-01 Serf destroyed. 01632_ G-34 Mercenary destroyed. 01633_ R-06 Scavenger collects Aluminum Leg. 01633_ U-05 Engineer lays Concrete. 01634_ K-01 Serf collects debris. 01634_ U-05 Engineer lays Concrete. 01634_ R-06 Scavenger collects Lgt. Ion Engine. 01635_ U-05 Engineer builds a Wall. 01637_ R-06 Scavenger collects Ion Engine. 01638_ K-01 Serf collects debris. 01638_ R-06 Scavenger collects Med. Matter Pod. 01639_ U-05 Engineer lays Concrete. Map ----- +----------------------------------------------------+ | ??????????????????????????????????????# ## #?? | | ??????????????????????????????????????# ## #?? | | ??????????????????????????????????????# ## #?? | | ??????????????????????????????????????# ## #?? | | ??????????????????????????????????????# ## #?? | | ??????????????????????????????????????# ## #?? | | ??????????????????????????????????????# ## #?? | | ?????????????????????????????????????## ## #?? | | ?????????????????????????????????????# # #?? | | ?????????????????????????????????????# + #?? | | ?????????????????????????????????????# # #?? | | ????????????????????? ???????????????# # #?? | | ???????????????????# ???????????????# ##+####?? | | ???????????????????# ??????????????# ### | | ???????????????????# a ?????########?# / | | ???????????????????# ?????#""|"!""## ### | | ??????????????????## #????# "|"!" # ##?? | | ??????????????????# ##### # ### | | ??????????????????# ! | | ???????????????""?+ > | | ???????????????"" # | | ???????????"" """ # # ### | | ??????????? k ######### #?? | | ????????????! %* u u u #?? | | ????????????????## [%=urrr u #?? | | ?????????? r !!= @ ! #?? | | ????????????????#= % l % #?? | | ????????????????#### #######+########### #?? | | ?????????????????# ??????## #?# #?? | | ?????????????????# ????????# "" #?# #?? | | ?????????????????# ??????????# """#?# #?? | | ?????????????????#???????????# R"#?### ###?? | | ?????????????????????????????# " """#????+#???? | | ?????????????????????????????# " #?????????? | | ?????????????????????????????# " ##????????? | | ?????????????????????????????# #????????? | | ?????????????????????????????#### #######????????? | | ????????????????????????????????# # #??????????? | | ????????????????????????????????#######??????????? | | ?????????????????????????????????????????????????? | | ?????????????????????????????????????????????????? | | ?????????????????????????????????????????????????? | | ?????????????????????????????????????????????????? | | ?????????????????????????????????????????????????? | | ?????????????????????????????????????????????????? | | ?????????????????????????????????????????????????? | | ?????????????????????????????????????????????????? | | ?????????????????????????????????????????????????? | | ?????????????????????????????????????????????????? | | ?????????????????????????????????????????????????? | +----------------------------------------------------+ Best States ------------- Heat Dissipation 38 Energy Generation 10 Energy Capacity 250 Matter Stores 300 Matter Capacity 300 Sight Range 16 Terrain Scan Range 16 Terrain Scan Density 10 Armor Coverage 150 Evasion (%) 55 Targeting Accuracy 5 Recoil Reduction 2 Item Schematics ----------------- None Robot Schematics ------------------ None Fabricated ------------ Nothing Alien Tech Used ----------------- None Achievements -------------- None Challenges ------------ None Game ------ Seed CarbideAntimatterChip Manual? 0 Play Time 00:23:22 Cumulative 62.6 hours Start 2022.04.27 @ 14:14:25 End 2022.04.27 @ 14:36:32 Sessions 1 Manual Loads 0 Difficulty Rogue Special Mode None Game No. 37 Rogue 7 Adventurer 30 Explorer 0 Win Type - Total 1 Types 1/0/0/0/0/0/0/0/0 Lore% 41 Gallery% 51 Achievement% 41 Wizard Run 0 Options --------- ASCII 1 Keyboard 0 Movement Numpad Keybinds 0 Fullscreen 1 Font 24/Terminus Map View 76x50 Tactical HUD 1 Map Filters NONE Filters NONE Steam 1 RUN: 0b2055ad-47b7-42b2-97bc-0b6d89426765